Department Family,Entity,Date Paid,Expense Type,Expense Area,Supplier Name,Transaction Reference, Gross Amount 
Department of Health,Chelsea & Westminster NHS Foundation Trust,01/08/2017,Service Charge - Core Pfi,Pfi Unitary Payment,Bywest Ltd,1076190,1677370.06
Department of Health,Chelsea & Westminster NHS Foundation Trust,01/08/2017,Soft services,Chelsea & Westminster Site,Cbre Managed Services Limited,1076021,300019.27
Department of Health,Chelsea & Westminster NHS Foundation Trust,01/08/2017,Agency Nurse - Band 5,Central Nursing Agency,Care Providers Recruitment Ltd,1070183,296350.08
Department of Health,Chelsea & Westminster NHS Foundation Trust,01/08/2017,Electricty,Estates Facilities Management,Edf Energy 1 Ltd,1069383,262249.83
Department of Health,Chelsea & Westminster NHS Foundation Trust,01/08/2017,Rates & Council Tax,Trust Wide ,Hounslow London Borough Council,1079424,85329
Department of Health,Chelsea & Westminster NHS Foundation Trust,01/08/2017,Typing&Transcription Services,Opd Admin Musculo Skeletal,Dscribe Ltd,1077673,42155.8
Department of Health,Chelsea & Westminster NHS Foundation Trust,01/08/2017,Agency Nurse - Band 5,Central Nursing Agency,Care Providers Recruitment Ltd,1070805,31056.72
Department of Health,Chelsea & Westminster NHS Foundation Trust,03/08/2017,Nw London Pathology Contract,Pathology And Blood,North West London Pathology,1067338,1741561
Department of Health,Chelsea & Westminster NHS Foundation Trust,03/08/2017,Drug Purchases,Pharmacy  (Chelsea site),Boots Uk Ltd,1068798,1679491.39
Department of Health,Chelsea & Westminster NHS Foundation Trust,03/08/2017,Drug Purchases,Pharmacy  (Chelsea site),St George'S Healthcare Nhs Trust,1077466,151865.58
Department of Health,Chelsea & Westminster NHS Foundation Trust,03/08/2017,Clinical Supplies,Divisional Areas,Nhs Supply Chain,1070035,123431.74
Department of Health,Chelsea & Westminster NHS Foundation Trust,03/08/2017,Clinical Supplies,Divisional Areas,Nhs Supply Chain,1070037,96509.22
Department of Health,Chelsea & Westminster NHS Foundation Trust,03/08/2017,Building Expenditure,Chelsea & Westminster Gynecology Ward,Ensigna Construction Ltd,1068394,54751.74
Department of Health,Chelsea & Westminster NHS Foundation Trust,03/08/2017,Recharges � Pay and non pay costs,Trust General Services,Imperial College Healthcare Nhs Trust,1070819,49524.61
Department of Health,Chelsea & Westminster NHS Foundation Trust,03/08/2017,Recharges � Pay and non pay costs,Pathology And Blood,Imperial College Healthcare Nhs Trust,947309,30684.75
Department of Health,Chelsea & Westminster NHS Foundation Trust,03/08/2017,Non-Nhs Contracts,Radiology Department,Medica Reporting Ltd (Medica Group),1071558,28228.44
Department of Health,Chelsea & Westminster NHS Foundation Trust,03/08/2017,M.S.S.E. - Routine Purchases,Radiology,Nhs Logistics Authority Maintenance,1070406,25175.34
Department of Health,Chelsea & Westminster NHS Foundation Trust,08/08/2017,Clinical Tests From Non Nhs,Dean Street 1,Genmed Me Ltd,1080860,567368.22
Department of Health,Chelsea & Westminster NHS Foundation Trust,08/08/2017,Clinical Tests From Non Nhs,Dean Street 1,Genmed Me Ltd,1080861,567248.22
Department of Health,Chelsea & Westminster NHS Foundation Trust,08/08/2017,Agency Nurse - Band 5,Central Nursing Agency,Care Providers Recruitment Ltd,1073171,412039.91
Department of Health,Chelsea & Westminster NHS Foundation Trust,08/08/2017,Agency Nurse - Band 5,Central Nursing Agency,Care Providers Recruitment Ltd,1073172,125177.03
Department of Health,Chelsea & Westminster NHS Foundation Trust,08/08/2017,Clinical Tests From Non Nhs,Dean Street 1,Genmed Me Ltd,1080862,67434.19
Department of Health,Chelsea & Westminster NHS Foundation Trust,08/08/2017,Clinical Tests From Non Nhs,Dean Street 1,Genmed Me Ltd,1080863,67434.19
Department of Health,Chelsea & Westminster NHS Foundation Trust,08/08/2017,Clinical Tests From Non Nhs,Dean Street 1,Genmed Me Ltd,1080864,67434.19
Department of Health,Chelsea & Westminster NHS Foundation Trust,08/08/2017,Clinical Tests From Non Nhs,Dean Street 1,Genmed Me Ltd,1080865,67434.19
Department of Health,Chelsea & Westminster NHS Foundation Trust,08/08/2017,Clinical Tests From Non Nhs,Dean Street 1,Genmed Me Ltd,1080866,67434.19
Department of Health,Chelsea & Westminster NHS Foundation Trust,08/08/2017,Recharges � Pay and non pay costs,Trust General Services,Imperial College Healthcare Nhs Trust,1071556,50180.93
Department of Health,Chelsea & Westminster NHS Foundation Trust,08/08/2017,T.M.H. Out-Patient Facilities,Teddington Memorial O/P,Hounslow & Richmond Community Healthcare,891723,42225
Department of Health,Chelsea & Westminster NHS Foundation Trust,08/08/2017,Medical Agency - Other,Aau Medical Staff,Barts Health Nhs Trust,1040613,33107.16
Department of Health,Chelsea & Westminster NHS Foundation Trust,08/08/2017,Drugs - H.I.V.,Hiv - Herts,Healthcare At Home Limited,1076390,27735
Department of Health,Chelsea & Westminster NHS Foundation Trust,10/08/2017,P.T.S. - Main Contract,Trust General Services,Olympic (South) Ltd T/A Hats,1076016,165664.8
Department of Health,Chelsea & Westminster NHS Foundation Trust,10/08/2017,Clinical Supplies,Divisional Areas,Nhs Supply Chain,1073075,133323.71
Department of Health,Chelsea & Westminster NHS Foundation Trust,10/08/2017,Clinical Supplies,Divisional Areas,Nhs Supply Chain,1073076,95495.77
Department of Health,Chelsea & Westminster NHS Foundation Trust,10/08/2017,Drug Purchases,Pharmacy  (Chelsea site),Gilead Sciences Ltd,1075013,61355.22
Department of Health,Chelsea & Westminster NHS Foundation Trust,10/08/2017,Recharges � Pay and non pay costs,Clahrc Delivery Early Years,Imperial College Healthcare Nhs Trust,1079223,41664.44
Department of Health,Chelsea & Westminster NHS Foundation Trust,10/08/2017,Services From Non Nhs Org,Pharmacy Outpatients,Boots Uk Ltd,1081398,40161.25
Department of Health,Chelsea & Westminster NHS Foundation Trust,10/08/2017,Sterile Services Contract,Sterile Services Dept,Ihss Limited,1073192,39329.16
Department of Health,Chelsea & Westminster NHS Foundation Trust,10/08/2017,Legal Fees,Epr Cross Site Project,Bird & Bird Llp,1069890,27414.24
Department of Health,Chelsea & Westminster NHS Foundation Trust,14/08/2017,Rates & Rents - Residences,Queen Mary Maternity Unit,London North West Healthcare Nhs Trust,910392,32301.3
Department of Health,Chelsea & Westminster NHS Foundation Trust,14/08/2017,Rates & Rents - Residences,Queen Mary Maternity Unit,London North West Healthcare Nhs Trust,966396,32301.3
Department of Health,Chelsea & Westminster NHS Foundation Trust,15/08/2017,Agency Nurse - Band 5,Central Nursing Agency,Care Providers Recruitment Ltd,1076315,336975.08
Department of Health,Chelsea & Westminster NHS Foundation Trust,15/08/2017,Recharges � Pay and non pay costs,Path Central Purchasing,Imperial College Healthcare Nhs Trust,1027388,186512.23
Department of Health,Chelsea & Westminster NHS Foundation Trust,15/08/2017,Recharges � Pay and non pay costs,Path Central Purchasing,Imperial College Healthcare Nhs Trust,1027350,50490
Department of Health,Chelsea & Westminster NHS Foundation Trust,15/08/2017,General Maintenance Contracts,General Medicine Management,Central London Community Healthcare Nhs Trust,1074729,44052
Department of Health,Chelsea & Westminster NHS Foundation Trust,15/08/2017,Lift Refurbishment,Chelsea and Wesminster Site,Liftec Lifts Limited,1074713,42836.4
Department of Health,Chelsea & Westminster NHS Foundation Trust,15/08/2017,Drugs - H.I.V.,Hiv - Herts,Healthcare At Home Limited,1076391,40305.1
Department of Health,Chelsea & Westminster NHS Foundation Trust,15/08/2017,Rates & Rents - Residences,Queen Mary Maternity Unit,London North West Healthcare Nhs Trust,966395,32301.3
Department of Health,Chelsea & Westminster NHS Foundation Trust,15/08/2017,Services From N.H.S. Bodies,Queen Mary Maternity Unit,London North West Healthcare Nhs Trust,1002370,32301.3
Department of Health,Chelsea & Westminster NHS Foundation Trust,15/08/2017,Feasability Study,Chelsea & Westminster ( St Stephen ),Wh Partnership Ltd,1084976,30240
Department of Health,Chelsea & Westminster NHS Foundation Trust,17/08/2017,Leases - Buildings,Queen Mary Maternity Unit,Moduleco  Healthcare Ltd,1077765,854010.2
Department of Health,Chelsea & Westminster NHS Foundation Trust,17/08/2017,Building Expenditure,Chelsea & Westminster AAU Phase 1,Ensigna Construction Ltd,1076099,227994.02
Department of Health,Chelsea & Westminster NHS Foundation Trust,17/08/2017,Clinical Supplies,Divisional Areas,Nhs Supply Chain,1076431,134552.14
Department of Health,Chelsea & Westminster NHS Foundation Trust,17/08/2017,Drug Purchases,Pharmacy  (Chelsea site),St George'S Healthcare Nhs Trust,1082255,102605.7,,, 
Department of Health,Chelsea & Westminster NHS Foundation Trust,17/08/2017,Building Expenditure,Chelsea & Westminster Changing Rooms,Ensigna Construction Ltd,1074844,98877.6
Department of Health,Chelsea & Westminster NHS Foundation Trust,17/08/2017,Clinical Supplies,Divisional Areas,Nhs Supply Chain,1076432,89602.13
Department of Health,Chelsea & Westminster NHS Foundation Trust,17/08/2017,Door Replacement & Refurbishment Work,Chelsea and Wesminster Site,Phoenix Construction Services Ltd,1080834,63360
Department of Health,Chelsea & Westminster NHS Foundation Trust,17/08/2017,Drug Purchases,Pharmacy  (Chelsea site),St George'S Healthcare Nhs Trust,1077889,49839.3
Department of Health,Chelsea & Westminster NHS Foundation Trust,17/08/2017,Drug Purchases,Pharmacy  (Chelsea site),Gilead Sciences Ltd,1077832,44443.02
Department of Health,Chelsea & Westminster NHS Foundation Trust,17/08/2017,Recharges � Pay and non pay costs,Oncology Management,Imperial College Healthcare Nhs Trust,1068838,33448.19
Department of Health,Chelsea & Westminster NHS Foundation Trust,18/08/2017,Architectural Services Expenses,Chelsea & Westminster Nicu and Itu,Devereux Architects Ltd,991987,31480.8
Department of Health,Chelsea & Westminster NHS Foundation Trust,22/08/2017,Service Charge - Core Pfi,Pfi Unitary Payment,Bywest Ltd,1083723,1750803.34
Department of Health,Chelsea & Westminster NHS Foundation Trust,22/08/2017,Agency Nurse - Band 5,Central Nursing Agency,Care Providers Recruitment Ltd,1079228,366295.6
Department of Health,Chelsea & Westminster NHS Foundation Trust,22/08/2017,Fire Alarm Replacement,Chelsea and Wesminster Site,Jca Engineering Limited,1080416,239400
Department of Health,Chelsea & Westminster NHS Foundation Trust,22/08/2017,Non-Nhs Contracts,Cardiac Cath Lab,Medtronic Limited,1086830,154638
Department of Health,Chelsea & Westminster NHS Foundation Trust,22/08/2017,Drugs - H.I.V.,Hiv - Herts,Healthcare At Home Limited,1079226,41036.59
Department of Health,Chelsea & Westminster NHS Foundation Trust,22/08/2017,Internal Audit Fees,Director Of Finance,Kpmg Llp Fees Account,1077585,37129.68
Department of Health,Chelsea & Westminster NHS Foundation Trust,22/08/2017,Agency Nurse - Band 5,Central Nursing Agency,Care Providers Recruitment Ltd,1079227,28504.93
Department of Health,Chelsea & Westminster NHS Foundation Trust,22/08/2017,Drug Purchases,Pharmacy  (Chelsea site),Csl Behring Uk Ltd,1079512,27625
Department of Health,Chelsea & Westminster NHS Foundation Trust,24/08/2017,Drug Purchases,Pharmacy  (Chelsea site),Boots Uk Ltd,1081396,1975523.02
Department of Health,Chelsea & Westminster NHS Foundation Trust,24/08/2017,Soft services,Chelsea & Westminster Site,Cbre Managed Services Limited,1078521,300019.27
Department of Health,Chelsea & Westminster NHS Foundation Trust,24/08/2017,Clinical Supplies,Divisional Areas,Nhs Supply Chain,1079323,123352.77
Department of Health,Chelsea & Westminster NHS Foundation Trust,24/08/2017,Clinical Supplies,Divisional Areas,Nhs Supply Chain,1079321,100634.29
Department of Health,Chelsea & Westminster NHS Foundation Trust,24/08/2017,Drug Purchases,Pharmacy  (Chelsea site),Gilead Sciences Ltd,1080943,50176.8
Department of Health,Chelsea & Westminster NHS Foundation Trust,24/08/2017,Payroll - Mckesson,Human Resources Department,Nhs Shared Business Services,1075135,36699.1
Department of Health,Chelsea & Westminster NHS Foundation Trust,24/08/2017,Soft services,Medical Gas Drawings Project Works,Cbre Managed Services Limited,1078522,29700
Department of Health,Chelsea & Westminster NHS Foundation Trust,24/08/2017,Drug Purchases,Pharmacy  (Chelsea site),Bayer Plc,1079500,26220
Department of Health,Chelsea & Westminster NHS Foundation Trust,29/08/2017,Nw London Pathology Contract,Pathology And Blood,North West London Pathology,1079328,1741561
Department of Health,Chelsea & Westminster NHS Foundation Trust,29/08/2017,Insurance contribution,Legal Services,Nhs Resolution C/O Nhs Litigation Authority,1091568,1668381.7
Department of Health,Chelsea & Westminster NHS Foundation Trust,29/08/2017,Drug Purchases,Pharmacy  (Chelsea site),Boots Uk Ltd,1087322,1565771.08
Department of Health,Chelsea & Westminster NHS Foundation Trust,29/08/2017,Drug Purchases,Pharmacy  (Chelsea site),Boots Uk Ltd,1087318,1327722.25
Department of Health,Chelsea & Westminster NHS Foundation Trust,29/08/2017,I.T. Expenditure,I.C.T,Cerner Limited,1078327,847380.67
Department of Health,Chelsea & Westminster NHS Foundation Trust,29/08/2017,I.T. Expenditure,I.C.T,Cerner Limited,1078328,321718.42
Department of Health,Chelsea & Westminster NHS Foundation Trust,29/08/2017,Agency Nurse - Band 5,Central Nursing Agency,Care Providers Recruitment Ltd,1083021,273075.18
Department of Health,Chelsea & Westminster NHS Foundation Trust,29/08/2017,Rates & Council Tax,Trust Wide ,Royal Borough Of Kensington And Chelsea,1091540,210079
Department of Health,Chelsea & Westminster NHS Foundation Trust,29/08/2017,Clinical Tests From Non Nhs,Dean Street 1,Genmed Me Ltd,1085183,202302.58
Department of Health,Chelsea & Westminster NHS Foundation Trust,29/08/2017,I.T. Expenditure,I.C.T,Cerner Limited,1078329,160383.8
Department of Health,Chelsea & Westminster NHS Foundation Trust,29/08/2017,I.T. Expenditure,I.C.T,Cerner Limited,1078326,146729.7
Department of Health,Chelsea & Westminster NHS Foundation Trust,29/08/2017,Clinical Supplies,Divisional Areas,Nhs Supply Chain,1083050,126047.96
Department of Health,Chelsea & Westminster NHS Foundation Trust,29/08/2017,General Maintenance Contracts,Decontamination Services Dept,Nhs Logistics Authority Maintenance,1080854,110908
Department of Health,Chelsea & Westminster NHS Foundation Trust,29/08/2017,M.S.S.E. - Other,Dean Street 1,Doctors Laboratory Ltd (The),1082035,92124
Department of Health,Chelsea & Westminster NHS Foundation Trust,29/08/2017,Clinical Supplies,Divisional Areas,Nhs Supply Chain,1083054,79965.98
Department of Health,Chelsea & Westminster NHS Foundation Trust,29/08/2017,Nhs Blood Products,Pathology And Blood,Nhs Blood Transplant,1091566,73459.08
Department of Health,Chelsea & Westminster NHS Foundation Trust,29/08/2017,Clinical Tests From Non Nhs,Dean Street 1,Genmed Me Ltd,1081071,67434.19
Department of Health,Chelsea & Westminster NHS Foundation Trust,29/08/2017,Nhs Blood Products,Haematology Department,Nhs Blood Transplant,1091564,58794.58
Department of Health,Chelsea & Westminster NHS Foundation Trust,29/08/2017,Architectural Services Expenses,Chelsea & Westminster Nicu and Itu,Devereux Architects Ltd,1085448,41449.48
Department of Health,Chelsea & Westminster NHS Foundation Trust,29/08/2017,Typing&Transcription Services,Opd Admin Musculo Skeletal,Dscribe Ltd,1083780,40724.08
Department of Health,Chelsea & Westminster NHS Foundation Trust,29/08/2017,Services From Non Nhs Org,Service Level Agreements,Royal Borough Of Kensington And Chelsea,1020001,40720.36
Department of Health,Chelsea & Westminster NHS Foundation Trust,29/08/2017,Recharge Externalnhs Org,Strategy And Marketing,Central London (Westminster) Ccg,1030198,37618
Department of Health,Chelsea & Westminster NHS Foundation Trust,29/08/2017,Services From Non Nhs Org,Pharmacy Outpatients,Boots Uk Ltd,1087324,35166.84
Department of Health,Chelsea & Westminster NHS Foundation Trust,29/08/2017,Appliances - Other,Surgical Appliances Department,Trulife Limited,1083324,34535.64
Department of Health,Chelsea & Westminster NHS Foundation Trust,29/08/2017,Door Replacement & Refurbishment Work,Chelsea and Wesminster Site,Phoenix Construction Services Ltd,1086035,33540
Department of Health,Chelsea & Westminster NHS Foundation Trust,29/08/2017,Drugs - H.I.V.,Hiv - Herts,Healthcare At Home Limited,1083082,32677.33
Department of Health,Chelsea & Westminster NHS Foundation Trust,29/08/2017,Typing&Transcription Services,Clin Admin Management Team,Scribetech Uk Ltd,1082653,29249.98
Department of Health,Chelsea & Westminster NHS Foundation Trust,29/08/2017,Drug Purchases,Pharmacy  (Chelsea site),Gilead Sciences Ltd,1083233,27996
Department of Health,Chelsea & Westminster NHS Foundation Trust,29/08/2017,Rates & Council Tax,Trust Wide ,Westminster City Council,1091548,25200
Department of Health,Chelsea & Westminster NHS Foundation Trust,30/08/2017,Services From Non Nhs Org,Medihome & Surgical Outlier,Medihome Ltd,1056426,113923
